[Event "Live Chess"]
[Site "Chess.com"]
[Date "2023.05.20"]
[Round "-"]
[White "JackRudd"]
[Black "Pablo_dmp"]
[Result "1-0"]
[WhiteElo "2434"]
[BlackElo "1864"]
[TimeControl "300"]
[EndTime "10:56:27 PDT"]
[Termination "JackRudd won on time"]

1. d4 {[%clk 0:04:54]} 1... d5 {[%clk 0:04:58.5]} 2. c4 {[%clk 0:04:52.8]} 2...
e6 {[%clk 0:04:56.4]} 3. Nc3 {[%clk 0:04:51.4]} 3... a6 {[%clk 0:04:54.9]} 4.
cxd5 {[%clk 0:04:49.8]} 4... exd5 {[%clk 0:04:54.8]} 5. Nf3 {[%clk 0:04:49]}
5... Nf6 {[%clk 0:04:53.4]} 6. Bg5 {[%clk 0:04:47.4]} 6... Be7 {[%clk
0:04:52.5]} 7. e3 {[%clk 0:04:46]} 7... Bf5 {[%clk 0:04:49.4]} 8. Bd3 {[%clk
0:04:43.2]} 8... Bxd3 {[%clk 0:04:47.5]} 9. Qxd3 {[%clk 0:04:42.5]} 9... c6
{[%clk 0:04:43.6]} 10. O-O {[%clk 0:04:41.4]} 10... Nbd7 {[%clk 0:04:42.7]} 11.
Rab1 {[%clk 0:04:40.6]} 11... h6 {[%clk 0:04:41.8]} 12. Bh4 {[%clk 0:04:39]}
12... b5 {[%clk 0:04:36.3]} 13. Rbc1 {[%clk 0:04:35.8]} 13... Nb6 {[%clk
0:04:22.8]} 14. Ne5 {[%clk 0:04:33.9]} 14... Rc8 {[%clk 0:04:19.4]} 15. b3
{[%clk 0:04:33.1]} 15... Nbd7 {[%clk 0:04:13.1]} 16. f4 {[%clk 0:04:31]} 16...
O-O {[%clk 0:03:44.5]} 17. Ne2 {[%clk 0:04:27.2]} 17... Ne4 {[%clk 0:03:42.7]}
18. Bxe7 {[%clk 0:04:25.2]} 18... Qxe7 {[%clk 0:03:42.6]} 19. Nxc6 {[%clk
0:04:24.2]} 19... Qa3 {[%clk 0:03:31.2]} 20. Ng3 {[%clk 0:04:19.6]} 20... Nxg3
{[%clk 0:03:25.1]} 21. hxg3 {[%clk 0:04:18.4]} 21... Rce8 {[%clk 0:03:21.8]} 22.
Rc2 {[%clk 0:04:16.6]} 22... Nf6 {[%clk 0:03:19.7]} 23. Ne5 {[%clk 0:04:12.2]}
23... Qd6 {[%clk 0:03:03.8]} 24. Rfc1 {[%clk 0:04:10.2]} 24... Ne4 {[%clk
0:03:02.4]} 25. g4 {[%clk 0:04:07.8]} 25... Qf6 {[%clk 0:02:53.2]} 26. Nd7
{[%clk 0:03:57.6]} 26... Qh4 {[%clk 0:02:51.2]} 27. Nxf8 {[%clk 0:03:56.2]}
27... Kxf8 {[%clk 0:02:48.7]} 28. Qe2 {[%clk 0:03:51.6]} 28... Ng3 {[%clk
0:02:20.5]} 29. Qf3 {[%clk 0:03:50.2]} 29... Ne4 {[%clk 0:01:57.9]} 30. Rc8
{[%clk 0:03:43.2]} 30... Rxc8 {[%clk 0:01:47.4]} 31. Rxc8+ {[%clk 0:03:41.3]}
31... Ke7 {[%clk 0:01:46.9]} 32. Rc1 {[%clk 0:03:38.8]} 32... f6 {[%clk
0:01:31.3]} 33. Rf1 {[%clk 0:03:31.6]} 33... Nd2 {[%clk 0:01:27]} 34. Qxd5
{[%clk 0:03:28.3]} 34... Nxf1 {[%clk 0:01:25.6]} 35. Kxf1 {[%clk 0:03:27.2]}
35... Qh1+ {[%clk 0:01:23.5]} 36. Kf2 {[%clk 0:03:26.3]} 36... Qh4+ {[%clk
0:01:21.3]} 37. Kf3 {[%clk 0:03:23.9]} 37... Qe1 {[%clk 0:01:18.4]} 38. Qb7+
{[%clk 0:03:22.5]} 38... Kf8 {[%clk 0:01:15.6]} 39. Ke4 {[%clk 0:03:12.6]} 39...
Qb1+ {[%clk 0:01:09]} 40. Kd5 {[%clk 0:03:11.1]} 40... Qxa2 {[%clk 0:00:59.6]}
41. Qc8+ {[%clk 0:03:03.1]} 41... Kf7 {[%clk 0:00:55.7]} 42. Qe6+ {[%clk
0:03:01]} 42... Kf8 {[%clk 0:00:50.5]} 43. Kd6 {[%clk 0:02:59.9]} 43... Qa3+
{[%clk 0:00:47.2]} 44. Kd7 {[%clk 0:02:58.9]} 44... g5 {[%clk 0:00:10.9]} 45.
Qxf6+ {[%clk 0:02:57.7]} 45... Kg8 {[%clk 0:00:10.3]} 46. Qg6+ {[%clk 0:02:57]}
46... Kf8 {[%clk 0:00:09.2]} 47. Qxh6+ {[%clk 0:02:56.2]} 47... Kf7 {[%clk
0:00:08.4]} 48. Qh7+ {[%clk 0:02:54.5]} 48... Kf6 {[%clk 0:00:06.7]} 49. Qf5+
{[%clk 0:02:53.3]} 49... Kg7 {[%clk 0:00:05.8]} 50. Qxg5+ {[%clk 0:02:52.6]}
50... Kf8 {[%clk 0:00:05.7]} 51. Qc5+ {[%clk 0:02:50.6]} 51... Qxc5 {[%clk
0:00:04.7]} 52. dxc5 {[%clk 0:02:49.8]} 52... a5 {[%clk 0:00:04.6]} 53. c6
{[%clk 0:02:49.1]} 53... a4 {[%clk 0:00:04.5]} 54. c7 {[%clk 0:02:48.1]} 54...
axb3 {[%clk 0:00:02.8]} 55. c8=Q+ {[%clk 0:02:46.7]} 55... Kf7 {[%clk 0:00:02]}
56. Qc3 {[%clk 0:02:45.6]} 56... b2 {[%clk 0:00:01.2]} 57. Qxb2 {[%clk
0:02:44.7]} 1-0

[Event "Live Chess"]
[Site "Chess.com"]
[Date "2023.05.20"]
[Round "-"]
[White "CocheseUK"]
[Black "18Ziyad"]
[Result "1-0"]
[WhiteElo "1163"]
[BlackElo "954"]
[TimeControl "300"]
[EndTime "10:56:29 PDT"]
[Termination "CocheseUK won by resignation"]

1. e4 {[%clk 0:04:58.6]} 1... c5 {[%clk 0:04:57.9]} 2. Nf3 {[%clk 0:04:55.6]}
2... Nc6 {[%clk 0:04:56.7]} 3. d4 {[%clk 0:04:50.6]} 3... e6 {[%clk 0:04:47.6]}
4. Nc3 {[%clk 0:04:34.2]} 4... b6 {[%clk 0:04:45.8]} 5. Be3 {[%clk 0:04:32.3]}
5... Bb7 {[%clk 0:04:43.7]} 6. d5 {[%clk 0:04:19.6]} 6... exd5 {[%clk
0:04:41.5]} 7. exd5 {[%clk 0:04:18.5]} 7... Nce7 {[%clk 0:04:40.5]} 8. Bc4
{[%clk 0:04:14.6]} 8... Qc7 {[%clk 0:04:38.2]} 9. O-O {[%clk 0:04:10.7]} 9... d6
{[%clk 0:04:26.2]} 10. Nb5 {[%clk 0:04:01]} 10... Qb8 {[%clk 0:04:23.3]} 11. Bf4
{[%clk 0:03:40.3]} 11... Nc8 {[%clk 0:04:01.9]} 12. Re1+ {[%clk 0:03:26.1]}
12... Nge7 {[%clk 0:03:58.4]} 13. c3 {[%clk 0:03:15.4]} 13... g6 {[%clk
0:03:57.1]} 14. Re3 {[%clk 0:03:01.7]} 14... Bg7 {[%clk 0:03:55.5]} 15. Qd2
{[%clk 0:02:58.3]} 15... O-O {[%clk 0:03:53.9]} 16. Rae1 {[%clk 0:02:57.1]}
16... Nf5 {[%clk 0:03:50.1]} 17. Re8 {[%clk 0:02:43.9]} 17... a6 {[%clk
0:03:41.8]} 18. Rxf8+ {[%clk 0:02:29.3]} 18... Kxf8 {[%clk 0:03:38.4]} 19. Na3
{[%clk 0:02:17.8]} 19... b5 {[%clk 0:03:37]} 20. Bb3 {[%clk 0:02:04.8]} 20... c4
{[%clk 0:03:35.6]} 21. Bc2 {[%clk 0:02:03]} 21... Nce7 {[%clk 0:03:29.3]} 22. g4
{[%clk 0:01:26.8]} 22... Nh6 {[%clk 0:03:16.9]} 23. Bxh6 {[%clk 0:01:24.9]}
23... Bxh6 {[%clk 0:03:12.6]} 24. Qxh6+ {[%clk 0:01:21.7]} 24... Kg8 {[%clk
0:03:12.5]} 25. Rxe7 {[%clk 0:01:17.1]} 25... Bxd5 {[%clk 0:03:07]} 26. Ng5
{[%clk 0:01:07.1]} 26... Be6 {[%clk 0:02:44.5]} 1-0

[Event "Live Chess"]
[Site "Chess.com"]
[Date "2023.05.20"]
[Round "-"]
[White "Brooms1989"]
[Black "matt1979"]
[Result "1-0"]
[WhiteElo "1016"]
[BlackElo "1444"]
[TimeControl "300"]
[EndTime "10:56:47 PDT"]
[Termination "Brooms1989 won on time"]

1. e4 {[%clk 0:04:58.5]} 1... d6 {[%clk 0:04:58]} 2. d4 {[%clk 0:04:53.1]} 2...
Nf6 {[%clk 0:04:56.3]} 3. Nc3 {[%clk 0:04:51.1]} 3... Nbd7 {[%clk 0:04:54.1]} 4.
Bd3 {[%clk 0:04:43.4]} 4... e5 {[%clk 0:04:51.9]} 5. dxe5 {[%clk 0:04:35.4]}
5... dxe5 {[%clk 0:04:42.9]} 6. Nf3 {[%clk 0:04:33]} 6... c6 {[%clk 0:04:37.9]}
7. Bg5 {[%clk 0:04:29.3]} 7... Qc7 {[%clk 0:04:36.3]} 8. O-O {[%clk 0:04:22.2]}
8... h6 {[%clk 0:04:35]} 9. Bxf6 {[%clk 0:04:17.8]} 9... gxf6 {[%clk 0:04:29.8]}
10. Ne2 {[%clk 0:04:07.9]} 10... Nc5 {[%clk 0:04:22.1]} 11. Ng3 {[%clk
0:04:00.5]} 11... Bg4 {[%clk 0:04:18.4]} 12. h3 {[%clk 0:03:57.4]} 12... Be6
{[%clk 0:04:06.4]} 13. Nf5 {[%clk 0:03:44.8]} 13... Bxf5 {[%clk 0:03:59.1]} 14.
exf5 {[%clk 0:03:40.3]} 14... O-O-O {[%clk 0:03:56.5]} 15. Ne1 {[%clk
0:03:30.7]} 15... e4 {[%clk 0:03:50.8]} 16. b4 {[%clk 0:03:13.6]} 16... Na4
{[%clk 0:03:18.8]} 17. c4 {[%clk 0:02:38.5]} 17... Nb2 {[%clk 0:03:09.6]} 18.
Qc2 {[%clk 0:02:25.7]} 18... Nxd3 {[%clk 0:03:07.6]} 19. Nxd3 {[%clk 0:02:23.8]}
19... exd3 {[%clk 0:03:01.8]} 20. Qd2 {[%clk 0:02:12.8]} 20... Qe5 {[%clk
0:02:56.6]} 21. Rae1 {[%clk 0:02:07.5]} 21... Qxf5 {[%clk 0:02:52.3]} 22. Re3
{[%clk 0:02:02.9]} 22... Rg8 {[%clk 0:02:39.1]} 23. Rfe1 {[%clk 0:01:56.2]}
23... h5 {[%clk 0:02:27.3]} 24. Rf3 {[%clk 0:01:48.3]} 24... Qxf3 {[%clk
0:02:21.9]} 25. g3 {[%clk 0:01:33.9]} 25... Bd6 {[%clk 0:02:14.7]} 26. Re3
{[%clk 0:01:29.8]} 26... Qf5 {[%clk 0:02:07]} 27. Rxd3 {[%clk 0:01:22.8]} 27...
Qxh3 {[%clk 0:02:04.9]} 28. Rxd6 {[%clk 0:01:18.7]} 28... Rxd6 {[%clk
0:02:01.1]} 29. Qxd6 {[%clk 0:01:16.5]} 29... h4 {[%clk 0:01:33.5]} 30. Qf4
{[%clk 0:01:03]} 30... hxg3 {[%clk 0:01:28.3]} 31. fxg3 {[%clk 0:00:44.4]} 31...
Rxg3+ {[%clk 0:01:23.3]} 32. Kf2 {[%clk 0:00:43.2]} 32... Qg2+ {[%clk
0:01:21.8]} 33. Ke1 {[%clk 0:00:40.9]} 33... Qg1+ {[%clk 0:01:18.9]} 34. Kd2
{[%clk 0:00:36.7]} 34... Rg2+ {[%clk 0:01:14.6]} 35. Kd3 {[%clk 0:00:34.1]}
35... Qd1+ {[%clk 0:01:12.4]} 36. Ke4 {[%clk 0:00:31.8]} 36... Re2+ {[%clk
0:01:10]} 37. Kf5 {[%clk 0:00:28.7]} 37... Qd3+ {[%clk 0:00:57.7]} 38. Kxf6
{[%clk 0:00:24.5]} 38... Qd8+ {[%clk 0:00:33.9]} 39. Kg7 {[%clk 0:00:19.2]}
39... Rg2+ {[%clk 0:00:31.3]} 40. Kxf7 {[%clk 0:00:16.5]} 40... Qd7+ {[%clk
0:00:27.9]} 41. Kf6 {[%clk 0:00:14.6]} 41... Qd8+ {[%clk 0:00:19.7]} 42. Ke5
{[%clk 0:00:12.6]} 42... Qc7+ {[%clk 0:00:18]} 43. Kf5 {[%clk 0:00:11.3]} 43...
Qxf4+ {[%clk 0:00:15.3]} 44. Kxf4 {[%clk 0:00:11.2]} 44... Rxa2 {[%clk
0:00:14.1]} 45. Ke4 {[%clk 0:00:10.4]} 45... Ra4 {[%clk 0:00:12.2]} 46. Kd4
{[%clk 0:00:07.6]} 46... Rxb4 {[%clk 0:00:12.1]} 47. Kc3 {[%clk 0:00:06.1]}
47... a5 {[%clk 0:00:12]} 48. Kc2 {[%clk 0:00:04.2]} 48... b6 {[%clk 0:00:10]}
49. c5 {[%clk 0:00:02.8]} 49... b5 {[%clk 0:00:08]} 50. Kc3 {[%clk 0:00:01.9]}
50... Kc7 {[%clk 0:00:06.6]} 51. Kc2 {[%clk 0:00:01.8]} 51... a4 {[%clk
0:00:05.8]} 52. Kc1 {[%clk 0:00:01.7]} 52... a3 {[%clk 0:00:05]} 53. Kc2 {[%clk
0:00:00.8]} 53... a2 {[%clk 0:00:02.1]} 54. Kd3 {[%clk 0:00:00.7]} 54... a1=Q
{[%clk 0:00:00.7]} 55. Ke3 {[%clk 0:00:00.6]} 1-0

[Event "Live Chess"]
[Site "Chess.com"]
[Date "2023.05.20"]
[Round "-"]
[White "peter-785"]
[Black "alexlines8"]
[Result "1-0"]
[WhiteElo "1168"]
[BlackElo "1238"]
[TimeControl "300"]
[EndTime "10:56:51 PDT"]
[Termination "peter-785 won by resignation"]

1. e4 {[%clk 0:04:55.3]} 1... c6 {[%clk 0:04:59.3]} 2. Nf3 {[%clk 0:04:54.3]}
2... d5 {[%clk 0:04:58.8]} 3. exd5 {[%clk 0:04:52.9]} 3... cxd5 {[%clk
0:04:58.7]} 4. d4 {[%clk 0:04:52.4]} 4... Nc6 {[%clk 0:04:56.9]} 5. Bb5 {[%clk
0:04:47.7]} 5... Bg4 {[%clk 0:04:53.1]} 6. h3 {[%clk 0:04:44.7]} 6... Bh5 {[%clk
0:04:49.8]} 7. Be3 {[%clk 0:04:41.5]} 7... Nf6 {[%clk 0:04:45.4]} 8. Nbd2 {[%clk
0:04:38.9]} 8... e6 {[%clk 0:04:43.2]} 9. c3 {[%clk 0:04:28.9]} 9... Bd6 {[%clk
0:04:38.8]} 10. Qa4 {[%clk 0:04:20.7]} 10... Qc7 {[%clk 0:04:17.7]} 11. O-O
{[%clk 0:04:01.6]} 11... O-O {[%clk 0:04:11.9]} 12. Rac1 {[%clk 0:03:51]} 12...
Bxf3 {[%clk 0:04:03.4]} 13. Nxf3 {[%clk 0:03:48]} 13... Ne4 {[%clk 0:03:58.6]}
14. Nd2 {[%clk 0:03:41.2]} 14... Nf6 {[%clk 0:03:42.9]} 15. f4 {[%clk
0:03:36.1]} 15... a6 {[%clk 0:03:26.4]} 16. Bd3 {[%clk 0:03:17.1]} 16... Rfe8
{[%clk 0:03:03.2]} 17. c4 {[%clk 0:03:02.5]} 17... Ne7 {[%clk 0:02:42.8]} 18.
cxd5 {[%clk 0:02:39.5]} 18... Qb8 {[%clk 0:02:36.1]} 19. dxe6 {[%clk 0:02:36.5]}
19... fxe6 {[%clk 0:02:31.5]} 20. Qb3 {[%clk 0:02:25.1]} 20... Nf5 {[%clk
0:02:18.7]} 21. Bxf5 {[%clk 0:02:20]} 1-0

[Event "Live Chess"]
[Site "Chess.com"]
[Date "2023.05.20"]
[Round "-"]
[White "Hacker_2009"]
[Black "GEMdzq"]
[Result "1-0"]
[WhiteElo "1928"]
[BlackElo "2192"]
[TimeControl "300"]
[EndTime "10:56:53 PDT"]
[Termination "Hacker_2009 won on time"]

1. d4 {[%clk 0:04:58]} 1... Nf6 {[%clk 0:04:58.6]} 2. Nf3 {[%clk 0:04:55.2]}
2... e6 {[%clk 0:04:57.7]} 3. c4 {[%clk 0:04:53.9]} 3... c5 {[%clk 0:04:57.1]}
4. e3 {[%clk 0:04:52.9]} 4... Be7 {[%clk 0:04:53.1]} 5. Nc3 {[%clk 0:04:51.4]}
5... O-O {[%clk 0:04:51.9]} 6. Be2 {[%clk 0:04:50]} 6... Nc6 {[%clk 0:04:51]} 7.
O-O {[%clk 0:04:48.9]} 7... cxd4 {[%clk 0:04:48.2]} 8. Nxd4 {[%clk 0:04:48.1]}
8... d5 {[%clk 0:04:45.8]} 9. cxd5 {[%clk 0:04:47.5]} 9... exd5 {[%clk
0:04:43.7]} 10. Bf3 {[%clk 0:04:47.1]} 10... Ne5 {[%clk 0:04:40.7]} 11. Be2
{[%clk 0:04:45.3]} 11... a6 {[%clk 0:04:36]} 12. b3 {[%clk 0:04:44.1]} 12... b5
{[%clk 0:04:33.8]} 13. Bb2 {[%clk 0:04:43.1]} 13... Bb7 {[%clk 0:04:32.5]} 14.
Rc1 {[%clk 0:04:41.6]} 14... Rc8 {[%clk 0:04:26.3]} 15. f4 {[%clk 0:04:40.1]}
15... Nc6 {[%clk 0:04:20.5]} 16. Bf3 {[%clk 0:04:38.2]} 16... Re8 {[%clk
0:04:07.8]} 17. Nf5 {[%clk 0:04:35.7]} 17... Qd7 {[%clk 0:03:50.1]} 18. Nxe7+
{[%clk 0:04:33.6]} 18... Qxe7 {[%clk 0:03:49.2]} 19. Nxd5 {[%clk 0:04:30.6]}
19... Nxd5 {[%clk 0:03:46.9]} 20. Qxd5 {[%clk 0:04:24.6]} 20... Qxe3+ {[%clk
0:03:43.8]} 21. Kh1 {[%clk 0:04:21.3]} 21... Rcd8 {[%clk 0:03:37.7]} 22. Qg5
{[%clk 0:04:17.2]} 22... Ne5 {[%clk 0:02:57.6]} 23. Bxb7 {[%clk 0:04:08.2]}
23... f6 {[%clk 0:02:56.6]} 24. Qg3 {[%clk 0:04:02.7]} 24... Nd3 {[%clk
0:02:48.3]} 25. Qxe3 {[%clk 0:03:52.6]} 25... Rxe3 {[%clk 0:02:48.2]} 26. Rc2
{[%clk 0:03:47.2]} 26... Ne1 {[%clk 0:02:40.6]} 27. Rc7 {[%clk 0:03:35.2]} 27...
Nd3 {[%clk 0:02:27.6]} 28. Bd4 {[%clk 0:03:19.2]} 28... Rxd4 {[%clk 0:02:17.2]}
29. h3 {[%clk 0:03:08.8]} 29... Nxf4 {[%clk 0:02:03.3]} 30. Rfc1 {[%clk
0:02:50.1]} 30... h5 {[%clk 0:01:48]} 31. R7c6 {[%clk 0:02:39.5]} 31... Ne2
{[%clk 0:01:41.4]} 32. Rc8+ {[%clk 0:02:20.6]} 32... Kh7 {[%clk 0:01:39.5]} 33.
Rb1 {[%clk 0:02:06.2]} 33... Ng3+ {[%clk 0:01:36.6]} 34. Kh2 {[%clk 0:02:03.8]}
34... h4 {[%clk 0:01:32.1]} 35. Bf3 {[%clk 0:01:59.7]} 35... Rd2 {[%clk
0:01:28.7]} 36. Bb7 {[%clk 0:01:48.9]} 36... Rxa2 {[%clk 0:01:14.6]} 37. Rd8
{[%clk 0:01:47.5]} 37... Rf2 {[%clk 0:00:51.5]} 38. Rd4 {[%clk 0:01:40.4]} 38...
g5 {[%clk 0:00:49.6]} 39. Rd7+ {[%clk 0:01:35.5]} 39... Kg6 {[%clk 0:00:48.2]}
40. Bxa6 {[%clk 0:01:27.2]} 40... b4 {[%clk 0:00:46.7]} 41. Bd3+ {[%clk
0:01:23.1]} 41... f5 {[%clk 0:00:33.5]} 42. Bc4 {[%clk 0:01:06.9]} 42... Nh5
{[%clk 0:00:20.9]} 43. Bf7+ {[%clk 0:00:59.2]} 43... Kh6 {[%clk 0:00:19.3]} 44.
Rbd1 {[%clk 0:00:56.8]} 44... Nf4 {[%clk 0:00:16.8]} 45. R1d6+ {[%clk
0:00:55.2]} 45... Kg7 {[%clk 0:00:16.1]} 46. Bd5+ {[%clk 0:00:49.6]} 46... Kf8
{[%clk 0:00:15.4]} 47. Ra6 {[%clk 0:00:27.3]} 47... Nxd5 {[%clk 0:00:13.2]} 48.
Ra8+ {[%clk 0:00:24.4]} 48... Re8 {[%clk 0:00:11.4]} 49. Rxe8+ {[%clk
0:00:22.8]} 49... Kxe8 {[%clk 0:00:11.3]} 50. Rxd5 {[%clk 0:00:22.2]} 50... g4
{[%clk 0:00:10.7]} 51. hxg4 {[%clk 0:00:19.4]} 51... fxg4 {[%clk 0:00:10.6]} 52.
Rd4 {[%clk 0:00:18.8]} 52... g3+ {[%clk 0:00:09.9]} 53. Kh3 {[%clk 0:00:18]}
53... Rb2 {[%clk 0:00:07.9]} 54. Rxb4 {[%clk 0:00:16.9]} 54... Kf7 {[%clk
0:00:06.9]} 55. Rf4+ {[%clk 0:00:15.2]} 55... Kg6 {[%clk 0:00:06.8]} 56. b4
{[%clk 0:00:15.1]} 56... Kg5 {[%clk 0:00:05.7]} 57. Rg4+ {[%clk 0:00:15]} 57...
Kh5 {[%clk 0:00:04.5]} 58. Rxh4+ {[%clk 0:00:14.6]} 58... Kg5 {[%clk 0:00:04.4]}
59. Rg4+ {[%clk 0:00:14.4]} 59... Kf5 {[%clk 0:00:04.3]} 60. Rxg3 {[%clk
0:00:13.8]} 60... Rxb4 {[%clk 0:00:04.2]} 61. Rf3+ {[%clk 0:00:13.6]} 61... Kg5
{[%clk 0:00:03.2]} 62. Kg3 {[%clk 0:00:13.5]} 62... Rb1 {[%clk 0:00:02.6]} 63.
Ra3 {[%clk 0:00:12.7]} 63... Rb2 {[%clk 0:00:01.8]} 64. Ra5+ {[%clk 0:00:12.2]}
64... Kg6 {[%clk 0:00:00.2]} 65. Ra3 {[%clk 0:00:12.1]} 1-0

[Event "Live Chess"]
[Site "Chess.com"]
[Date "2023.05.20"]
[Round "-"]
[White "BostonStrangler"]
[Black "ClassyChameleon"]
[Result "1-0"]
[WhiteElo "2078"]
[BlackElo "1060"]
[TimeControl "300"]
[EndTime "10:57:01 PDT"]
[Termination "BostonStrangler won by resignation"]

1. Nf3 {[%clk 0:04:59.1]} 1... b5 {[%clk 0:04:51.9]} 2. g3 {[%clk 0:04:59]} 2...
Bb7 {[%clk 0:04:49.3]} 3. Bg2 {[%clk 0:04:58.9]} 3... d5 {[%clk 0:04:44.4]} 4.
O-O {[%clk 0:04:57.7]} 4... Nf6 {[%clk 0:04:43]} 5. a4 {[%clk 0:04:56.4]} 5...
b4 {[%clk 0:04:39.3]} 6. d3 {[%clk 0:04:54]} 6... e6 {[%clk 0:04:33.4]} 7. Nbd2
{[%clk 0:04:52.5]} 7... Be7 {[%clk 0:04:27.9]} 8. b3 {[%clk 0:04:49.9]} 8... O-O
{[%clk 0:04:26.3]} 9. Bb2 {[%clk 0:04:49.1]} 9... c5 {[%clk 0:04:21]} 10. d4
{[%clk 0:04:45.2]} 10... cxd4 {[%clk 0:04:16.9]} 11. Nxd4 {[%clk 0:04:43.3]}
11... Nc6 {[%clk 0:04:11.8]} 12. N2f3 {[%clk 0:04:33.3]} 12... Nxd4 {[%clk
0:04:06.9]} 13. Nxd4 {[%clk 0:04:30.9]} 13... Ne4 {[%clk 0:04:05.3]} 14. Qd3
{[%clk 0:04:25.8]} 14... Ng5 {[%clk 0:03:49.7]} 15. a5 {[%clk 0:04:22.4]} 15...
a6 {[%clk 0:03:45.5]} 16. h4 {[%clk 0:04:09.8]} 16... Ne4 {[%clk 0:03:33.2]} 17.
h5 {[%clk 0:04:05]} 17... h6 {[%clk 0:03:25.8]} 18. Qe3 {[%clk 0:03:38.7]} 18...
Ng5 {[%clk 0:03:18.1]} 19. Rfd1 {[%clk 0:03:24.6]} 19... Bf6 {[%clk 0:03:15.2]}
20. f4 {[%clk 0:03:15.1]} 20... Ne4 {[%clk 0:03:10.6]} 21. Bxe4 {[%clk
0:03:12.5]} 21... dxe4 {[%clk 0:03:08.8]} 22. Nf5 {[%clk 0:02:49.7]} 22... Qb8
{[%clk 0:02:15.3]} 23. Nxh6+ {[%clk 0:02:45.6]} 23... Kh7 {[%clk 0:02:08.3]} 24.
Bxf6 {[%clk 0:02:41.2]} 24... gxf6 {[%clk 0:02:07.1]} 25. Ng4 {[%clk 0:02:39.2]}
25... f5 {[%clk 0:02:05.9]} 26. Nf6+ {[%clk 0:02:33.9]} 26... Kh6 {[%clk
0:02:04.1]} 27. g4 {[%clk 0:02:24.5]} 27... Qc7 {[%clk 0:01:41.9]} 28. g5+
{[%clk 0:02:19.6]} 28... Kg7 {[%clk 0:01:36.5]} 29. Qd4 {[%clk 0:02:10.3]} 29...
e5 {[%clk 0:01:09.1]} 30. fxe5 {[%clk 0:02:06.2]} 30... Rfd8 {[%clk 0:01:03.9]}
31. Nd7 {[%clk 0:01:51]} 31... Rxd7 {[%clk 0:00:52.7]} 32. Qxd7 {[%clk 0:01:48]}
32... Qxe5 {[%clk 0:00:41.7]} 33. Qd4 {[%clk 0:01:39.6]} 33... Qxd4+ {[%clk
0:00:39.8]} 34. Rxd4 {[%clk 0:01:36.5]} 34... e3 {[%clk 0:00:38.9]} 35. Rd7
{[%clk 0:01:28.4]} 35... Be4 {[%clk 0:00:29.9]} 36. g6 {[%clk 0:01:27.2]} 36...
Rf8 {[%clk 0:00:15.8]} 37. Rxf7+ {[%clk 0:01:23.7]} 37... Rxf7 {[%clk
0:00:15.1]} 38. gxf7 {[%clk 0:01:22.4]} 38... Kxf7 {[%clk 0:00:14.8]} 39. Rc1
{[%clk 0:01:19.2]} 39... Kf6 {[%clk 0:00:14.2]} 40. Kh2 {[%clk 0:01:18.2]} 40...
Kg5 {[%clk 0:00:13.6]} 41. Kg3 {[%clk 0:01:16.9]} 41... Kxh5 {[%clk 0:00:13.1]}
42. Kf4 {[%clk 0:01:15.9]} 42... Kg6 {[%clk 0:00:11.3]} 43. Kxe3 {[%clk
0:01:14.5]} 43... Kg5 {[%clk 0:00:09.6]} 44. Kd4 {[%clk 0:01:11.5]} 44... Kg4
{[%clk 0:00:08.1]} 45. Kc5 {[%clk 0:01:10]} 45... f4 {[%clk 0:00:07.2]} 46. Kxb4
{[%clk 0:01:08.6]} 46... f3 {[%clk 0:00:06.8]} 47. exf3+ {[%clk 0:01:07.1]}
47... Bxf3 {[%clk 0:00:06.6]} 48. c4 {[%clk 0:01:06.1]} 48... Kg3 {[%clk
0:00:06.4]} 49. c5 {[%clk 0:01:04.9]} 49... Be2 {[%clk 0:00:06.2]} 50. c6 {[%clk
0:01:03.7]} 50... Bb5 {[%clk 0:00:05.9]} 51. c7 {[%clk 0:01:02.5]} 51... Kf2
{[%clk 0:00:05.5]} 52. c8=Q {[%clk 0:01:00.9]} 52... Ke2 {[%clk 0:00:05.2]} 1-0

[Event "Live Chess"]
[Site "Chess.com"]
[Date "2023.05.20"]
[Round "-"]
[White "minenko-1958"]
[Black "PantherCal"]
[Result "0-1"]
[WhiteElo "1416"]
[BlackElo "1851"]
[TimeControl "300"]
[EndTime "10:57:02 PDT"]
[Termination "PantherCal won by resignation"]

1. e4 {[%clk 0:04:57.5]} 1... d5 {[%clk 0:04:55]} 2. exd5 {[%clk 0:04:55.9]}
2... Qxd5 {[%clk 0:04:53.8]} 3. Nc3 {[%clk 0:04:54.4]} 3... Qa5 {[%clk
0:04:52.4]} 4. d4 {[%clk 0:04:51.7]} 4... Nf6 {[%clk 0:04:50.4]} 5. f3 {[%clk
0:04:50.2]} 5... Bf5 {[%clk 0:04:50.3]} 6. Bd2 {[%clk 0:04:47.9]} 6... c6 {[%clk
0:04:49]} 7. Ne4 {[%clk 0:04:43.5]} 7... Qd8 {[%clk 0:04:48]} 8. Nxf6+ {[%clk
0:04:40.8]} 8... gxf6 {[%clk 0:04:47.9]} 9. Bc3 {[%clk 0:04:38.1]} 9... Nd7
{[%clk 0:04:44.5]} 10. Bd3 {[%clk 0:04:32.8]} 10... Bg6 {[%clk 0:04:42.6]} 11.
Bxg6 {[%clk 0:04:31.1]} 11... hxg6 {[%clk 0:04:41.8]} 12. Ne2 {[%clk 0:04:29.3]}
12... e5 {[%clk 0:04:39.7]} 13. dxe5 {[%clk 0:04:27.8]} 13... Nxe5 {[%clk
0:04:38.9]} 14. Qxd8+ {[%clk 0:04:25.6]} 14... Rxd8 {[%clk 0:04:38.8]} 15. Bxe5
{[%clk 0:04:21.7]} 15... fxe5 {[%clk 0:04:37.5]} 16. Ng3 {[%clk 0:04:20]} 16...
Bc5 {[%clk 0:04:33]} 17. Ne4 {[%clk 0:04:18.3]} 17... Bb6 {[%clk 0:04:28.3]} 18.
Nf6+ {[%clk 0:04:16.9]} 18... Ke7 {[%clk 0:04:27.2]} 19. Ne4 {[%clk 0:04:14.6]}
19... f5 {[%clk 0:04:24.8]} 20. Nc3 {[%clk 0:04:11.5]} 20... Rh4 {[%clk
0:04:16.8]} 21. Rd1 {[%clk 0:04:08.8]} 21... Rhd4 {[%clk 0:04:00.1]} 22. Rxd4
{[%clk 0:04:06.5]} 22... Rxd4 {[%clk 0:03:57.6]} 23. Ne2 {[%clk 0:04:04.8]}
23... Rb4 {[%clk 0:03:53.6]} 24. b3 {[%clk 0:04:03]} 24... e4 {[%clk 0:03:44.6]}
25. fxe4 {[%clk 0:03:59.3]} 25... Rxe4 {[%clk 0:03:44.5]} 26. Kd2 {[%clk
0:03:53.3]} 26... Kd6 {[%clk 0:03:35.2]} 27. c4 {[%clk 0:03:50.7]} 27... Ke5
{[%clk 0:03:32.3]} 28. Ng3 {[%clk 0:03:47.5]} 28... Rd4+ {[%clk 0:03:30.7]} 29.
Kc2 {[%clk 0:03:44.5]} 29... Ba5 {[%clk 0:03:23.8]} 30. a3 {[%clk 0:03:41.2]}
30... Rd2+ {[%clk 0:03:18.6]} 31. Kc1 {[%clk 0:03:39.9]} 31... Rxg2 {[%clk
0:03:16.1]} 32. b4 {[%clk 0:03:38.3]} 32... Bb6 {[%clk 0:03:13.4]} 33. c5 {[%clk
0:03:37.1]} 33... Bc7 {[%clk 0:03:12.1]} 34. Nf1 {[%clk 0:03:32.1]} 34... Ra2
{[%clk 0:03:10.2]} 35. Kb1 {[%clk 0:03:30.2]} 35... Re2 {[%clk 0:03:03.9]} 36.
Ng3 {[%clk 0:03:27.1]} 36... Rg2 {[%clk 0:02:57.7]} 37. Re1+ {[%clk 0:03:23.5]}
37... Kf6 {[%clk 0:02:56.8]} 38. Re2 {[%clk 0:03:20.6]} 38... Rg1+ {[%clk
0:02:51.2]} 39. Kb2 {[%clk 0:03:17.9]} 39... Bxg3 {[%clk 0:02:50.4]} 40. hxg3
{[%clk 0:03:16.4]} 40... Rxg3 {[%clk 0:02:50.3]} 41. Rd2 {[%clk 0:03:13.9]}
41... Ke6 {[%clk 0:02:48]} 42. Rd6+ {[%clk 0:03:12.1]} 42... Ke7 {[%clk
0:02:46.6]} 43. Rd2 {[%clk 0:03:07.9]} 43... f4 {[%clk 0:02:45.2]} 44. Rf2
{[%clk 0:03:06.1]} 44... g5 {[%clk 0:02:43.9]} 45. a4 {[%clk 0:03:05.6]} 45...
f3 {[%clk 0:02:42.3]} 46. b5 {[%clk 0:03:03.4]} 46... Rg2 {[%clk 0:02:41]} 0-1